bitfinex-derivatives/quotes_ETHF0:USTF0_20260112
["timestamp","ask_amount","ask_price","bid_price","bid_amount"]
[1768177072288,0.16498337,3126.2,3124.0,3.206]
[1768177073590,0.0040065,3126.7,3125.0,0.16022]
[1768177073792,0.16898987,3126.7,3125.1,1.528]
[1768177075903,0.16898987,3126.7,3125.0,0.00260898]
[1768177076103,0.16498337,3126.5,3125.0,0.00260898]
[1768177076297,0.16498337,3126.2,3125.0,0.00260898]
[1768177076497,0.16498337,3126.2,3124.0,0.99627]
[1768177076696,0.32517337,3125.5,3123.5,3.205]
[1768177077005,0.16498337,3125.3,3123.3,1.6883]
[1768177077207,0.16498337,3125.3,3123.3,4.6883]
[1768177077405,0.16498337,3125.3,3123.4,0.1603]
[1768177077711,0.16498337,3125.3,3123.5,0.16029]
[1768177078002,0.16498337,3125.3,3123.4,0.00412822]
[1768177078195,0.16498337,3125.3,3123.7,0.16028]
[1768177079306,0.16498337,3125.3,3123.8,1.527]
[1768177079499,0.16498337,3125.3,3123.4,3.20912822]
[1768177079700,0.16498337,3125.3,3123.5,1.527]
[1768177081507,0.16498337,3125.2,3123.5,1.527]
[1768177083512,0.16498337,3125.2,3123.5,1.68729]
[1768177084012,0.16498337,3125.2,3123.5,0.16029]
[1768177084211,0.16498337,3125.2,3123.6,1.527]
[1768177087110,0.16498337,3125.2,3123.5,0.16029]
[1768177087308,0.16498337,3125.2,3123.6,1.526]
[1768177088003,0.14653603,3125.9,3123.6,1.526]
[1768177088405,0.14653603,3125.8,3123.6,1.68629]
[1768177089208,0.14653603,3125.8,3123.6,1.526]
[1768177090315,0.14653603,3125.8,3124.0,0.16027]
[1768177090612,0.14457929,3126.3,3123.7,0.06332626]
[1768177090819,0.0040065,3126.7,3124.3,0.06332626]
[1768177091315,0.0040065,3126.7,3125.0,0.16022]
[1768177091615,0.0040065,3126.7,3125.2,0.16021]
[1768177092413,0.14858579,3126.7,3125.2,1.525]
[1768177093219,0.14858579,3126.7,3124.7,0.16023]
[1768177093513,0.14457929,3126.6,3124.7,1.68523]
[1768177095406,0.0040065,3126.7,3125.0,0.16022]
[1768177095611,0.0040065,3126.7,3124.8,0.0654679]
[1768177096610,0.0040065,3126.7,3125.2,0.16021]
[1768177099619,0.0040065,3126.7,3124.9,0.06512552]
[1768177099921,0.0040065,3126.7,3125.5,0.16019]
[1768177100122,0.0040065,3126.7,3125.6,3.0]
[1768177100318,0.0040065,3126.7,3125.7,1.524]
[1768177100519,0.0040065,3126.7,3125.6,3.00250133]
[1768177100520,0.0040065,3126.7,3125.8,1.524]
[1768177101725,0.14457929,3127.6,3125.8,1.524]
[1768177102816,0.00266409,3127.6,3126.3,0.16015]
[1768177103528,0.00266409,3127.6,3126.6,0.16014]
[1768177103717,2.25958725,3129.1,3127.1,0.16011]
[1768177103718,0.14457929,3128.8,3127.1,0.16011]
[1768177103923,0.14457929,3129.6,3127.2,4.726]
[1768177104124,0.14457929,3129.4,3127.5,0.16009]
[1768177104326,0.14457929,3129.0,3127.3,1.523]
[1768177104527,0.14457929,3128.8,3126.8,0.16012]
[1768177104822,0.1470601,3128.8,3126.8,0.16012]
[1768177105021,0.1470601,3128.8,3126.9,1.523]
[1768177105228,0.1470601,3128.8,3127.0,0.16012]
[1768177106322,0.1470601,3128.8,3126.3,3.0]
[1768177106323,0.14457929,3128.6,3126.4,0.16015]
[1768177106523,0.14457929,3128.4,3126.6,3.203]
[1768177106723,0.14457929,3128.2,3126.6,3.203]
[1768177106925,0.14457929,3128.2,3126.2,1.523]
[1768177107117,0.14457929,3128.2,3125.8,0.16018]
[1768177107318,0.14457929,3128.0,3125.8,0.16018]
[1768177107529,0.14457929,3128.0,3125.9,4.725]
[1768177107716,0.14457929,3128.0,3125.8,0.16018]
[1768177107920,0.14457929,3127.6,3125.8,0.16018]
[1768177108222,0.30467929,3127.4,3125.6,0.00250133]
[1768177108425,0.14457929,3127.3,3125.6,0.00250133]
[1768177108926,0.30467929,3127.3,3125.6,0.00250133]
[1768177109121,0.14457929,3127.0,3125.6,0.00250133]
[1768177109332,0.30469929,3127.0,3125.6,0.00250133]
[1768177109532,3.202,3127.9,3125.6,0.00250133]
[1768177109533,0.14457929,3126.8,3125.6,0.00250133]
[1768177110225,6.14457929,3126.8,3125.6,0.00250133]
[1768177110427,0.14457929,3126.7,3125.6,0.00250133]
[1768177110728,0.14457929,3126.6,3124.4,3.16025]
[1768177111130,0.14457929,3126.5,3124.4,7.88425]
[1768177111533,0.14457929,3126.3,3124.4,7.724]
[1768177111721,0.14457929,3126.3,3124.4,7.72646583]
[1768177112134,0.14457929,3126.3,3124.4,4.72646583]
[1768177113327,0.00228197,3126.5,3124.4,4.72646583]
[1768177113328,0.00228197,3126.5,3124.7,0.16023]
[1768177114434,0.00228197,3126.5,3124.8,0.16023]
[1768177114836,0.15443508,3126.5,3124.8,0.16023]
[1768177115034,0.15443508,3126.5,3124.4,0.00246583]
[1768177115235,0.15443508,3126.5,3124.5,4.724]
[1768177116040,0.15443508,3126.5,3124.5,4.88424]
[1768177118042,0.15215311,3126.2,3124.4,0.00246583]
[1768177118526,0.31232311,3125.9,3124.4,0.00246583]
[1768177118838,0.15215311,3125.8,3124.4,0.00246583]
[1768177119030,0.15215311,3125.7,3124.4,0.00246583]
[1768177119739,0.15215311,3125.7,3123.1,2.31467179]
[1768177119740,0.15215311,3124.8,3123.1,2.31467179]
[1768177119921,0.15215311,3124.8,3122.2,2.31467179]
[1768177120122,0.15215311,3124.8,3122.9,0.16033]
[1768177120322,0.15215311,3124.8,3123.0,0.16032]
[1768177120529,0.15215311,3125.5,3123.0,0.05860755]
[1768177120730,0.15215311,3125.5,3123.0,0.06182116]
[1768177121428,0.15215311,3125.5,3123.2,1.51535193]
[1768177121734,0.15215311,3125.5,3123.3,4.8843]
[1768177122030,0.15215311,3125.4,3123.3,4.8843]
[1768177122234,0.15215311,3125.3,3123.3,4.8843]
[1768177122636,0.15215311,3125.3,3123.3,4.724]
[1768177128137,0.31235311,3125.3,3123.3,4.724]
[1768177128342,0.15215311,3125.1,3123.3,4.724]
[1768177129039,0.15215311,3125.7,3123.3,4.724]
[1768177129243,0.15215311,3125.7,3123.7,0.16028]
[1768177131537,0.15215311,3125.7,3124.1,0.16026]
[1768177132247,0.15215311,3126.2,3123.8,0.05667555]
[1768177132644,0.00228197,3126.5,3123.8,0.05667555]
[1768177132645,0.15215311,3126.0,3123.8,0.05667555]
[1768177132846,0.15215311,3125.9,3123.7,1.67563193]
[1768177133159,0.15215311,3125.7,3123.8,3.0]
[1768177133453,0.31233311,3125.7,3123.7,0.16028]
[1768177133654,0.15215311,3125.5,3123.7,0.16028]
[1768177135242,0.15215311,3125.5,3123.8,0.16028]
[1768177135447,0.15215311,3125.5,3124.0,0.16027]
[1768177136953,0.15215311,3126.1,3123.9,2.37027071]
[1768177137353,0.15215311,3126.1,3124.0,2.31467179]
[1768177137755,0.15215311,3126.1,3124.3,0.16025]
[1768177137953,0.15215311,3125.7,3123.8,2.31467179]
[1768177138153,0.15215311,3125.7,3123.9,1.519]
[1768177138753,0.15215311,3125.7,3124.0,0.16027]
[1768177138957,0.15215311,3125.7,3123.9,3.83367179]
[1768177139158,0.15215311,3125.7,3124.2,0.16026]
[1768177139558,0.15215311,3126.3,3124.4,0.16025]
[1768177139759,0.96949109,3126.2,3124.4,0.16025]
[1768177139958,0.15215311,3126.2,3124.4,0.16025]
[1768177141663,0.15215311,3126.2,3124.5,0.16024]
[1768177142262,0.15215311,3126.2,3124.6,0.16024]
[1768177144462,0.15215311,3126.2,3124.7,0.16023]
[1768177144668,0.15215311,3126.2,3124.8,0.16023]
[1768177144963,0.15215311,3126.2,3124.9,0.16022]
[1768177145662,0.15215311,3126.2,3125.1,0.16021]
[1768177145966,0.00228197,3126.5,3125.1,0.16021]
[1768177146467,0.00228197,3126.5,3124.7,2.31467179]
[1768177146666,0.00228197,3126.5,3125.4,0.1602]
[1768177146857,0.00228197,3126.5,3125.4,0.1633146]
[1768177149465,0.00228197,3126.5,3125.5,0.16019]
[1768177149665,10.49141712,3127.7,3125.7,0.16018]
[1768177149865,0.14941712,3127.7,3125.8,0.16018]
[1768177150762,0.1533365,3127.7,3125.8,0.16018]
[1768177150970,0.1533365,3127.7,3125.6,2.31467179]
[1768177151272,0.1533365,3127.7,3126.3,0.16015]
[1768177152671,0.1533365,3127.7,3126.4,0.16015]
[1768177153169,0.00391938,3127.7,3126.4,0.16015]
[1768177153364,0.1485838,3127.7,3126.4,0.16015]
[1768177153970,0.1485838,3127.7,3125.7,0.16018]
[1768177154157,0.1485838,3127.7,3126.2,1.517]
[1768177155356,0.1485838,3127.7,3126.4,0.16015]
[1768177157867,0.00391938,3127.7,3126.4,0.16015]
[1768177158165,0.14466442,3128.2,3126.2,1.55678954]
[1768177158376,0.14466442,3128.2,3126.7,0.16013]
[1768177158564,0.14466442,3128.2,3126.4,0.03587016]
[1768177158874,0.14466442,3129.1,3126.7,1.51535193]
[1768177159065,0.14466442,3129.1,3127.0,0.16012]
[1768177159267,0.1488098,3129.1,3127.0,0.16012]
[1768177160071,0.1488098,3129.1,3127.3,1.51535193]
[1768177160272,0.1488098,3129.1,3127.4,4.718]
[1768177162776,0.00414538,3129.1,3127.8,0.16007]
[1768177163072,0.00414538,3129.1,3127.9,0.16007]
[1768177164280,0.00414538,3129.1,3128.0,7.717]
[1768177164867,0.00414538,3129.1,3128.0,6.201]
[1768177165073,0.00414538,3129.1,3128.1,1.515]
[1768177165274,0.1488098,3129.1,3127.8,0.00411336]
[1768177165875,0.14466442,3129.0,3127.2,0.1601]
[1768177167082,0.14466442,3129.0,3127.2,0.16391938]
[1768177167685,0.14466442,3129.0,3127.3,0.1601]
[1768177168377,0.14466442,3129.0,3127.2,0.00381938]
[1768177168679,0.14466442,3128.6,3127.3,1.514]
[1768177169181,6.14466442,3128.6,3127.2,0.00381938]
[1768177169378,0.14466442,3128.5,3127.2,0.00381938]
[1768177169584,0.14466442,3128.3,3127.2,0.00381938]
[1768177169775,0.14466442,3128.0,3125.9,0.16017]
[1768177169974,0.14466442,3127.8,3125.7,3.201]
[1768177170185,0.14466442,3127.6,3125.7,3.201]
[1768177170387,0.14466442,3127.2,3124.7,6.201]
[1768177170587,0.14466442,3127.2,3124.8,1.514]
[1768177170780,0.14466442,3127.2,3124.8,0.16300237]
[1768177171387,0.14466442,3126.9,3124.8,0.16300237]
[1768177171587,0.30479442,3126.8,3124.8,0.00277237]
[1768177171791,0.14466442,3126.5,3124.8,0.00277237]
[1768177173091,0.14466442,3126.5,3125.0,3.20511336]
[1768177174681,0.14466442,3126.5,3125.1,3.20511336]
[1768177174880,0.14466442,3126.5,3124.8,3.20788573]
[1768177175188,6.0,3126.5,3123.2,2.8475005]
[1768177175400,0.16025,3124.5,3122.6,0.14611107]
[1768177175886,0.16025,3124.4,3122.6,0.14611107]
[1768177176391,0.00345489,3124.4,3122.6,0.14838056]
[1768177177581,0.00345489,3124.4,3122.9,0.14611107]
[1768177182492,0.1602,3125.4,3123.1,0.14611107]
[1768177182691,0.1602,3125.4,3123.3,0.14611107]
[1768177183496,0.16322295,3125.4,3123.3,0.14611107]
[1768177183696,0.16023,3124.9,3123.3,0.14611107]
[1768177183892,0.16023,3124.9,3122.7,0.14611107]
[1768177184289,0.16023,3124.8,3122.7,0.14611107]
[1768177185499,0.00302295,3125.4,3122.7,0.14611107]
[1768177185697,0.1602,3125.3,3122.8,0.14611107]
[1768177186792,0.0074446,3125.2,3122.8,0.14611107]
[1768177186994,0.16025,3124.5,3122.8,0.14611107]
[1768177187202,0.16025,3124.4,3122.8,0.14611107]
[1768177189291,3.204,3125.1,3122.8,0.14611107]
[1768177189292,0.16022,3125.1,3122.8,0.14611107]
[1768177189692,0.16022,3125.0,3122.8,0.14611107]
[1768177190901,0.16023,3124.9,3122.8,0.14611107]
[1768177194595,0.16023,3124.9,3122.9,0.14611107]
[1768177194791,0.00302295,3125.4,3122.9,0.14611107]
[1768177194996,0.00117662,3127.8,3124.7,0.14611107]
[1768177194997,0.16011,3127.2,3124.7,0.14611107]
[1768177195201,0.16013,3126.8,3124.7,0.14611107]
[1768177195998,0.00297421,3126.8,3124.9,0.14611107]
[1768177196199,0.00297421,3126.8,3124.9,0.1484816]
[1768177196398,0.00297421,3126.8,3124.9,0.00237053]
[1768177196399,0.16015,3126.3,3124.9,0.00237053]
[1768177197000,0.00297421,3126.8,3124.9,0.1484816]
[1768177197500,0.16014,3126.6,3124.9,0.1484816]
[1768177198907,0.98143459,3126.5,3124.9,0.1484816]
[1768177199104,0.82256109,3126.4,3124.9,0.1484816]
[1768177199309,0.82262505,3126.3,3124.9,0.00237053]
[1768177199497,6.00297421,3126.8,3124.9,0.00237053]
[1768177199702,0.82262548,3126.7,3124.9,0.00237053]
[1768177200007,0.82262548,3126.6,3124.9,0.00237053]
[1768177200305,6.00297421,3126.8,3125.3,0.1602]
[1768177200306,0.00297421,3126.8,3125.3,0.1602]
[1768177200610,0.00297421,3126.8,3125.5,0.30630107]
[1768177200905,3.36404,3128.5,3125.8,0.14611107]
[1768177201104,3.36404,3128.5,3126.0,0.14611107]
[1768177201311,0.16005,3128.4,3126.0,0.14611107]
[1768177201610,0.16007,3127.9,3126.0,0.14611107]
[1768177202008,0.16414492,3127.9,3126.0,0.14611107]
[1768177202403,0.16008,3127.8,3126.0,0.14611107]
[1768177203506,0.00407492,3127.9,3126.0,0.14611107]
[1768177204308,0.16414492,3127.9,3126.0,0.14611107]
[1768177204812,0.16008,3127.7,3126.0,0.14611107]
[1768177207115,0.00407492,3127.9,3126.0,0.14611107]
[1768177209818,0.16414492,3127.9,3126.0,0.14611107]
[1768177210019,0.00407492,3127.9,3126.0,0.14611107]
[1768177210220,0.16009,3127.6,3126.0,0.14611107]
[1768177212524,6.0,3127.6,3125.0,0.14690485]
[1768177212718,0.16012,3127.1,3125.0,0.14690485]
[1768177213323,0.16008,3127.7,3125.2,0.14690485]
[1768177213910,0.00407492,3127.9,3125.3,0.14690485]
[1768177214110,0.82426193,3127.8,3125.3,0.14690485]
[1768177214316,0.16012,3127.0,3125.3,0.14690485]
[1768177215021,0.16014,3126.6,3125.3,0.14690485]
[1768177215224,0.16014,3126.5,3124.9,0.00237053]
[1768177215616,0.16015,3126.4,3124.9,0.00237053]
[1768177215814,0.16015,3126.4,3124.9,0.14927538]
[1768177218127,3.21106494,3127.2,3124.9,0.14927538]
[1768177218324,0.16016,3126.1,3124.9,0.14927538]
[1768177218534,0.16013,3126.8,3124.9,0.14927538]
[1768177218718,0.98520588,3126.7,3124.9,0.14927538]
[1768177218919,0.82507588,3126.6,3124.9,0.14927538]
[1768177219117,0.16013,3126.7,3124.9,0.14927538]
[1768177219318,7.252,3127.3,3124.9,0.14927538]
[1768177219319,0.1601,3127.3,3125.1,0.14690485]
[1768177219621,0.1601,3127.3,3124.9,0.00237053]
[1768177219622,0.1601,3127.3,3125.3,0.14690485]
[1768177219918,0.16414492,3127.9,3125.3,0.14690485]
[1768177220114,0.8254998,3127.8,3125.5,0.14690485]
[1768177220317,0.9855798,3127.7,3125.6,0.14690485]
[1768177220525,0.00407492,3127.9,3125.9,0.14690485]
[1768177220719,0.00407492,3127.9,3125.9,0.30707485]
[1768177221019,0.00407492,3127.9,3126.3,0.30705485]
[1768177221230,0.00407492,3127.9,3126.3,0.14690485]
[1768177221419,0.00407492,3127.9,3126.6,0.14690485]
[1768177221626,0.16002,3129.0,3126.7,0.14690485]
[1768177221820,0.82604131,3128.9,3126.8,0.30702485]
[1768177222016,1.44145274,3129.7,3127.0,0.14690485]
[1768177222219,0.82658194,3129.6,3127.0,0.14690485]
[1768177222417,0.82658194,3129.5,3127.0,0.14690485]
[1768177222628,0.82658194,3129.4,3127.0,0.14690485]
[1768177222921,0.01280197,3128.8,3126.5,0.14690485]
[1768177223126,0.16006,3128.1,3126.5,0.14690485]
[1768177223327,0.8269622,3128.0,3126.5,0.14690485]
[1768177223625,0.82700534,3127.9,3126.5,0.14690485]
[1768177223823,0.16006,3128.1,3126.5,0.14690485]
[1768177224020,0.82702367,3128.0,3126.5,0.14690485]
[1768177224220,0.82702367,3127.9,3126.5,0.14690485]
[1768177224427,0.82702367,3127.8,3126.5,0.14690485]
[1768177224628,0.16006,3128.1,3126.5,0.14690485]
[1768177224822,0.82804117,3128.0,3126.5,0.14690485]
[1768177225023,0.82804117,3127.9,3126.5,0.14690485]
[1768177225326,0.16006,3128.1,3126.5,0.14690485]
[1768177225526,0.82799546,3128.0,3126.5,0.14690485]
[1768177225715,0.16006,3128.1,3126.5,0.14690485]
[1768177225914,3.202,3129.0,3126.5,0.14690485]
[1768177225915,0.82800115,3128.0,3126.5,0.14690485]
[1768177226118,2.25958725,3129.0,3126.5,0.14690485]
[1768177226119,0.16003,3128.7,3126.5,0.14690485]
[1768177226319,0.82797276,3128.6,3126.5,0.14690485]
[1768177226620,0.82797276,3128.5,3126.5,0.14690485]
[1768177226922,0.82797276,3128.4,3126.5,0.14690485]
[1768177227124,0.82797276,3128.3,3126.5,0.14690485]
[1768177227431,0.82797276,3128.2,3126.5,0.14690485]
[1768177227729,0.82797276,3128.1,3126.5,0.14690485]
[1768177228021,0.16004,3128.6,3126.5,0.14690485]
[1768177228224,0.8282215,3128.5,3126.5,0.14690485]
[1768177228427,0.8282215,3128.4,3126.5,0.14690485]
[1768177228622,0.8282215,3128.3,3126.5,0.14690485]
[1768177228822,0.8282215,3128.2,3126.5,0.14690485]
[1768177229028,0.8282215,3128.1,3126.5,0.14690485]
[1768177229233,0.16004,3128.6,3126.5,0.14690485]
[1768177229524,0.82851957,3128.5,3126.5,0.14690485]
[1768177229828,0.16007,3127.9,3126.5,0.14690485]
[1768177230128,0.82851957,3127.8,3126.5,0.14690485]
[1768177230728,0.16012,3127.0,3125.2,0.14690485]
[1768177231029,0.82851957,3126.9,3125.2,0.14690485]
[1768177231231,0.16013,3126.7,3125.2,0.14690485]
[1768177231427,0.82851957,3126.6,3125.2,0.14690485]
[1768177235627,0.00399331,3127.0,3125.2,6.14690485]
[1768177235827,0.00399331,3127.0,3125.3,0.16043016]
[1768177237935,0.00399331,3127.0,3125.7,0.16043016]
[1768177242340,0.16007,3127.9,3126.1,0.16043016]
[1768177242534,0.8280196,3127.8,3126.1,0.16043016]
[1768177242733,0.16007,3127.9,3126.1,0.16043016]
[1768177242933,0.82800069,3127.8,3126.1,0.16043016]
[1768177243137,0.16007,3127.9,3126.1,0.16043016]
[1768177243336,0.83054413,3127.8,3126.1,0.16043016]
[1768177243531,0.00256609,3127.8,3126.1,0.16043016]
[1768177244935,0.16264609,3127.8,3126.1,0.16043016]
[1768177245131,0.82795134,3127.7,3126.1,0.16043016]
[1768177245332,0.16264609,3127.8,3126.1,0.16043016]
[1768177245636,0.8280682,3127.7,3126.1,0.16043016]
[1768177245938,0.16264609,3127.8,3126.1,0.16043016]
[1768177246139,0.82803206,3127.7,3126.1,0.16043016]
[1768177246338,0.16264609,3127.8,3126.1,0.16043016]
[1768177246538,0.82831295,3127.7,3126.1,0.16043016]
[1768177246739,0.16264609,3127.8,3126.1,0.16043016]
[1768177246931,0.82831321,3127.7,3126.1,0.16043016]
[1768177247131,0.16264609,3127.8,3126.1,0.16043016]
[1768177247333,0.83110799,3127.7,3126.1,0.16043016]
[1768177247533,0.16264609,3127.8,3126.1,0.16043016]
[1768177247734,0.83118915,3127.7,3126.1,0.16043016]
[1768177247939,0.16264609,3127.8,3126.1,0.16043016]
[1768177248127,0.83118577,3127.7,3126.1,0.16043016]
[1768177248331,0.83152354,3127.6,3126.1,0.16043016]
[1768177248535,0.16264609,3127.8,3126.1,0.16043016]
[1768177248739,0.83152256,3127.7,3126.1,0.16043016]
[1768177248941,0.16264609,3127.8,3126.1,0.16043016]
[1768177249138,0.83152349,3127.7,3126.1,0.16043016]
[1768177249442,0.16264609,3127.8,3126.1,0.16043016]
[1768177249639,0.83185563,3127.7,3126.1,0.16043016]
[1768177249835,0.16264609,3127.8,3126.1,0.16043016]
[1768177250039,0.83186599,3127.7,3126.1,0.16043016]
[1768177250239,0.16264609,3127.8,3126.1,0.16043016]
[1768177250435,0.83188529,3127.7,3126.1,0.16043016]
[1768177250638,0.16264609,3127.8,3126.1,0.16043016]
[1768177250835,0.83188543,3127.7,3126.1,0.16043016]
[1768177251038,0.16264609,3127.8,3126.1,0.16043016]
[1768177252445,0.83242208,3127.7,3126.1,0.16043016]
[1768177252637,0.16264609,3127.8,3126.1,0.16043016]
[1768177253033,0.00256609,3127.8,3126.1,0.16043016]
[1768177256830,0.00256609,3127.8,3126.4,0.16043016]
[1768177257840,0.00256609,3127.8,3126.5,0.16043016]
[1768177261148,0.16011,3127.1,3125.5,0.16043016]
[1768177261644,0.833094,3127.0,3125.5,0.16043016]
[1768177261840,0.16011,3127.1,3125.5,0.16043016]
[1768177262146,0.83317229,3127.0,3125.5,0.16043016]
[1768177262348,0.83317229,3126.9,3125.5,0.16043016]
[1768177262648,0.16011,3127.1,3125.5,0.16043016]
[1768177262847,0.83338246,3127.0,3125.5,0.16043016]
[1768177263048,0.83338246,3126.9,3125.5,0.16043016]
[1768177263345,0.16011,3127.1,3125.5,0.16043016]
[1768177263545,0.8335751,3127.0,3125.5,0.16043016]
[1768177263745,0.8335751,3126.9,3125.5,0.16043016]
[1768177263946,0.16011,3127.1,3125.5,0.16043016]
[1768177264151,0.83357497,3127.0,3125.5,0.16043016]
[1768177264349,0.83357497,3126.9,3125.5,0.16043016]
[1768177264553,0.16264609,3127.8,3125.5,0.16043016]
[1768177264740,0.83374908,3127.7,3125.5,0.16043016]
[1768177265041,0.99383908,3127.6,3125.5,0.16043016]
[1768177265350,0.83374908,3127.5,3125.5,0.16043016]
[1768177267435,0.01600938,3127.3,3124.9,0.15196333]
[1768177267648,0.16013,3126.7,3124.9,0.15196333]
[1768177267849,0.83374908,3126.6,3124.9,0.15196333]
[1768177268240,0.16013,3126.7,3124.9,0.15196333]
[1768177271145,0.83322594,3126.6,3124.9,0.15196333]
[1768177271345,0.16013,3126.7,3124.9,0.15196333]
[1768177271548,0.83298988,3126.6,3124.9,0.15196333]
[1768177271754,0.16013,3126.7,3124.9,0.15196333]
[1768177272053,0.83298988,3126.6,3124.9,0.15196333]
[1768177272250,0.16013,3126.7,3124.9,0.15196333]
[1768177272451,0.83279106,3126.6,3124.9,0.15196333]
[1768177272645,0.16013,3126.7,3124.9,0.15196333]
[1768177272846,0.83280264,3126.6,3124.9,0.15196333]
[1768177273051,0.16013,3126.7,3124.9,0.15196333]
[1768177273347,0.83280316,3126.6,3124.9,0.15196333]
[1768177273552,0.16013,3126.7,3124.9,0.15196333]
[1768177273755,0.83266176,3126.6,3124.9,0.15196333]
[1768177273955,0.16013,3126.7,3124.9,0.15196333]
[1768177274157,0.83266162,3126.6,3124.9,0.15196333]
[1768177274352,0.16013,3126.7,3124.9,0.15196333]
[1768177274557,0.83255292,3126.6,3124.9,0.15196333]
[1768177274857,0.16013,3126.7,3124.9,0.15196333]
[1768177275055,0.83255265,3126.6,3124.9,0.15196333]
[1768177275249,0.16013,3126.7,3124.9,0.15196333]
[1768177276148,0.83244435,3126.6,3124.9,0.15196333]
[1768177276350,0.16013,3126.7,3124.9,0.15196333]
[1768177276659,0.83237559,3126.6,3124.9,0.15196333]
[1768177276857,0.16013,3126.7,3124.9,0.15196333]
[1768177277157,0.83237559,3126.6,3124.9,0.15196333]
[1768177277353,0.16013,3126.7,3124.9,0.15196333]
[1768177277552,0.83240412,3126.6,3124.9,0.15196333]
[1768177277753,0.83240412,3126.5,3124.9,0.15196333]
[1768177278056,0.16013,3126.7,3124.9,0.15196333]
[1768177278256,0.83240893,3126.6,3124.9,0.15196333]
[1768177278452,0.83240893,3126.5,3124.9,0.15196333]
[1768177278758,0.16013,3126.7,3124.9,0.15196333]
[1768177278961,0.83234398,3126.6,3124.9,0.15196333]
[1768177279160,0.83234398,3126.5,3124.9,0.15196333]
[1768177279361,0.16013,3126.7,3124.9,0.15196333]
[1768177279662,0.83230296,3126.6,3124.9,0.15196333]
[1768177279853,0.83230296,3126.5,3124.9,0.15196333]
[1768177280054,0.16013,3126.7,3124.9,0.15196333]
[1768177280252,0.83230293,3126.6,3124.9,0.15196333]
[1768177280457,0.83230293,3126.5,3124.9,0.15196333]
[1768177280649,0.16013,3126.7,3124.9,0.15196333]
[1768177280852,0.83228958,3126.6,3124.9,0.15196333]
[1768177281150,0.83228958,3126.5,3124.9,0.15196333]
[1768177281351,0.16013,3126.7,3124.9,0.15196333]
[1768177281552,0.83230131,3126.6,3124.9,0.15196333]
[1768177281753,0.83230131,3126.5,3124.9,0.15196333]
[1768177281952,0.16014,3126.6,3124.9,0.15196333]
[1768177282153,0.83230145,3126.5,3124.9,0.15196333]
[1768177282353,0.16014,3126.6,3124.9,0.15196333]
[1768177282554,0.83233808,3126.5,3124.9,0.15196333]
[1768177282854,0.16014,3126.6,3124.9,0.15196333]
[1768177283164,0.83233808,3126.5,3124.9,0.15196333]
[1768177283356,0.16014,3126.6,3124.9,0.15196333]
[1768177283652,0.83242278,3126.5,3124.9,0.15196333]
[1768177283860,0.16014,3126.6,3124.9,0.15196333]
[1768177284062,0.83241793,3126.5,3124.9,0.15196333]
[1768177284258,0.01384498,3127.0,3124.9,0.15196333]
[1768177284462,0.01384498,3126.7,3124.9,0.00237053]
[1768177284659,0.8325324,3126.6,3124.9,0.00237053]
[1768177285257,0.16016,3126.1,3124.9,0.00237053]
[1768177286361,4.455,3126.6,3124.9,0.15526717]
[1768177286661,0.83273041,3126.5,3124.9,0.15526717]
[1768177286857,3.203,3127.1,3124.9,0.15526717]
[1768177287052,0.83260023,3127.0,3124.9,0.15526717]
[1768177287256,0.83260023,3126.9,3124.9,0.15526717]
[1768177287456,0.83260023,3126.8,3124.9,0.15526717]
[1768177287652,0.83260023,3126.7,3124.9,0.15526717]
[1768177287956,0.83260023,3126.6,3124.9,0.15526717]
[1768177288156,0.16012,3127.0,3124.9,0.15526717]
[1768177288356,1.252,3127.4,3124.9,0.15526717]
[1768177288357,0.99382739,3126.9,3124.9,0.15526717]
[1768177288561,0.83370739,3126.8,3124.9,0.15526717]
[1768177289355,2.34709199,3126.8,3124.9,0.00237053]
[1768177289560,0.16015,3126.3,3124.9,0.00237053]
[1768177289760,0.83370739,3126.2,3124.9,0.00237053]
[1768177290157,0.83370739,3126.2,3124.5,0.15289664]
[1768177290158,0.16017,3126.0,3124.5,0.15289664]
[1768177290364,0.83370739,3125.9,3124.5,0.15289664]
[1768177290959,0.16014,3126.5,3124.5,0.15289664]
[1768177291160,0.16016,3126.2,3124.5,0.15691068]
[1768177291360,0.83447254,3126.1,3124.5,0.15691068]
[1768177291663,0.83447254,3126.1,3124.5,0.00401404]
[1768177291664,0.16018,3125.9,3124.5,0.00401404]
[1768177291862,0.83447254,3125.8,3124.5,0.15691068]
[1768177292368,0.16014,3126.5,3124.6,0.15289664]
[1768177292664,0.83451644,3126.4,3124.6,0.15289664]
[1768177292853,0.83451644,3126.3,3124.6,0.15289664]
[1768177293050,6.392,3126.9,3124.6,0.15289664]
[1768177293265,0.83450528,3126.8,3124.6,0.15289664]
[1768177293463,0.83450528,3126.7,3124.6,0.15289664]
[1768177293659,0.83450528,3126.6,3124.6,0.15289664]
[1768177293857,0.83450528,3126.5,3124.6,0.15289664]
[1768177294058,0.83450528,3126.4,3124.6,0.15289664]
[1768177294266,0.83450528,3126.3,3124.6,0.15289664]
[1768177294566,0.16011,3127.1,3124.6,0.15289664]
[1768177294764,0.16012,3126.9,3124.6,0.15289664]
[1768177294963,0.83465465,3126.8,3124.6,0.15289664]
[1768177299463,0.83465465,3126.8,3124.8,0.15227141]
[1768177303063,0.99478465,3126.8,3124.8,0.15227141]
[1768177303268,0.83465465,3126.7,3124.8,0.15227141]
[1768177304872,0.00999498,3126.6,3124.5,2.31868583]
[1768177305071,0.00999498,3126.0,3124.5,0.00401404]
[1768177305270,0.83465465,3125.9,3124.5,0.00401404]
[1768177305568,0.16021,3125.2,3123.8,0.15227141]
[1768177305869,0.83465465,3125.1,3123.8,0.15227141]
[1768177306456,0.83868019,3125.1,3123.8,0.15497001]
[1768177306670,0.83465465,3125.0,3123.8,0.15497001]
[1768177306970,0.83465465,3124.9,3123.8,0.15497001]
[1768177307173,0.00402554,3125.1,3123.8,0.15497001]
[1768177307368,0.84974643,3125.0,3123.8,0.15497001]
[1768177307566,0.00402554,3125.1,3123.8,0.15497001]
[1768177307567,0.84974643,3124.9,3123.8,0.15497001]
[1768177307766,0.00402554,3125.1,3123.8,0.15497001]
[1768177307968,0.84976446,3125.0,3123.8,0.15497001]
[1768177308179,0.84976446,3124.9,3123.8,0.15497001]
[1768177308372,0.00402554,3125.1,3123.8,0.15497001]
[1768177309172,2.41973725,3126.4,3123.9,0.15227141]
[1768177309173,0.16015,3126.4,3123.9,0.15227141]
[1768177309377,0.84910964,3126.3,3123.9,0.15227141]
[1768177309574,0.84910964,3126.2,3123.9,0.15227141]
[1768177309770,0.84910964,3126.1,3123.9,0.15227141]
[1768177309978,0.84910964,3126.0,3123.9,0.15227141]
[1768177310275,0.84910964,3125.9,3123.9,0.15227141]
[1768177310476,0.84909704,3125.8,3123.9,0.15227141]